Cogmind - Beta 15 *** ADVENTURER MODE // 2025.05.25 @ 22:22:51 Player: Finn Result: Destroyed by Y9-WCS(R) with Subdweller Machine Gun Performance ------------- Evolutions (0) 0 Regions Visited (2) 400 Robots Destroyed (18) 90 Value Destroyed (526) 526 Prototype IDs (0) 0 Alien Tech Used (0) 0 Bonus (0) 0 TOTAL SCORE: 1016 Bonus ------- None Cogmind --------- Core Integrity 0/250 Matter 300/300 Energy 99/100 System Corruption 2% Temperature Cool (0) Movement Core (700) Ox13 Location -10/Subcaves Parts ------- > --- POWER (1) -------- (None) > --- PROPULSION (2) --- (None) > --- UTILITY (2) ------ High-capacity Storage Unit > --- WEAPON (2) ------- (None) > --- INVENTORY (20) --- Ion Engine Wheel Structural Scanner Sensor Array Targeting Computer Scrap Shield Peak State ------------ > --- POWER ------------ Light Nuclear Core > --- PROPULSION ------- Wheel Compact Wheel > --- UTILITY ---------- High-capacity Storage Unit Structural Scanner > --- WEAPON ----------- EM Pulse Gun Assault Rifle > --- INVENTORY -------- Ion Engine Light Ion Engine Wheel Sensor Array Targeting Computer Scrap Shield Light Assault Rifle [Rating: 10] Favorites ----------- Power Ion Engine Engine Ion Engine Power Core Light Nuclear Core Propulsion Wheel Wheel Wheel Utility High-capacity Storage Unit Device Structural Scanner Storage High-capacity Storage Unit Weapon EM Pulse Gun Energy Gun EM Pulse Gun Ballistic Gun Assault Rifle Launcher Grenade Launcher Build | -11 -10 -10 ------- Run | Yrd Mat Sub Slots Evolved . | . . . Power . | . . . Propulsion . | . . . Utility . | . . . Weapon . | . . . Parts Attached 15 | 6 8 1 Power 4 | 1 3 . Engine 3 | 1 2 . Core 1 | . 1 . Reactor . | . . . Propulsion 3 | 2 1 . Treads . | . . . Leg . | . . . Wheel 3 | 2 1 . Hover . | . . . Flight . | . . . Utility 3 | 1 2 . Device 1 | . 1 . Storage 2 | 1 1 . Processor . | . . . Hackware . | . . . Protection . | . . . Artifact . | . . . Weapon 5 | 2 2 1 Energy Gun 1 | 1 . . Energy Cannon . | . . . Ballistic Gun 3 | 1 1 1 Ballistic Cannon . | . . . Launcher 1 | . 1 . Special Weapon . | . . . Impact Weapon . | . . . Slashing Weapon . | . . . Piercing Weapon . | . . . Special Melee Weapon . | . . . Unidentified Prototypes . | . . . Parts Lost 10 | . 2 8 Power 3 | . 1 2 Propulsion 2 | . . 2 Utility . | . . . Weapon 5 | . 1 4 Highest Loss Streak 7 | . 1 7 To Critical Strikes 1 | . . 1 Average Backups 5 | 2 5 6 Power 1 | . 2 1 Propulsion . | . 1 1 Utility 1 | . 1 3 Weapon 1 | 1 1 . Tool/Special . | . . . Unused Backups 3 | . . 3 Power . | . . . Propulsion . | . . . Utility 3 | . . 3 Weapon . | . . . Tool/Special . | . . . Average Slot Usage (%) 94 | . 97 79 Engine 7 | . 9 . Core 4 | . 3 9 Wheel 26 | . 28 21 Device 12 | . 13 9 Storage 14 | . 14 14 Energy Gun 12 | . 13 8 Ballistic Gun 14 | . 14 14 Peak Build Rating 10 | 6 9 10 Average Rating 7 | 4 7 7 On Entrance 5 | . 6 9 Naked Turns . | . . . Heaviest Build 54 | 14 54 50 Greatest Support 26 | 26 26 26 Greatest Overweight (x) 14 | 1 2 14 Average Overweight (x) 1 | . . 1 Largest Inventory Capacity 20 | 8 20 20 Average Capacity 19 | 7 19 20 Most Carried 9 | 7 6 9 Average Carried 5 | 2 5 7 Final Capacity 20 | 8 20 20 Final Carried 7 | 4 6 7 Class Distribution -------------------- 100% | Mutant Dominant Class ---------------- Mutant | -10/Materials Mutant | -10/Subcaves Resources | -11 -10 -10 ----------- Run | Yrd Mat Sub Matter Collected 553 | 269 234 50 Remotely . | . . . Salvage Created 649 | 101 503 45 Parts 36 | 4 30 2 Haulers Intercepted 1 | . 1 . Recyclers Shooed . | . . . Parts Field Recycled . | . . . Retrieved Matter . | . . . Parts Self-Destructed . | . . . Prevented . | . . . Kills | -11 -10 -10 ------- Run | Yrd Mat Sub Combat Hostiles Destroyed 12 | . 11 1 Guns 8 | . 7 1 AOE 4 | . 4 . Classes Destroyed 6 | 2 3 1 Tunneler 1 | 1 . . Hauler 1 | . 1 . Recycler 1 | 1 . . Watcher 3 | . 3 . Grunt 11 | . 11 . Subdweller 1 | . . 1 Best Kill Streak 5 | 1 5 1 Combat Bots Only 4 | . 4 1 Max Kills in Single Turn 2 | 1 2 1 Gunslinging . | . . . Exploded 2 | . 2 . Melee . | . . . Uniques/NPCs Destroyed . | . . . Combat | -11 -10 -10 -------- Run | Yrd Mat Sub Hostile Shots Fired 68 | . 40 28 Missed 18 | . 14 4 Hits 50 | . 26 24 Projectile 50 | . 26 24 Critical Strikes 3 | . 1 2 Damage Taken 949 | 18 410 521 Core 250 | 9 121 120 Absorbed by Shields . | . . . Ignored by Resistances 246 | 5 113 128 Regen/Repaired (Parts) 2 | . 2 . Core Remaining (%) 96 | 96 . . Volleys Fired 48 | 3 36 9 Largest 2 | 2 2 2 Hottest 60 | 60 60 60 Shots Fired 86 | 6 67 13 Gun 80 | 6 61 13 Cannon . | . . . Launcher 6 | . 6 . Special . | . . . Kinetic 51 | 3 36 12 Thermal . | . . . Explosive 6 | . 6 . Electromagnetic 29 | 3 25 1 Robot Hit Streak 25 | 6 25 7 Robot Miss Streak 1 | . 1 1 Penetration Max . | . . . Secondary Targets . | . . . Shots Hit Robots 61 | 6 43 12 Core Hits 33 | 2 27 4 Critical Kills . | . . . Critical Parts Destroyed . | . . . Critical Strikes 3 | . 3 . Corrupt 3 | . 3 . Melee Attacks . | . . . Impact . | . . . Slashing . | . . . Piercing . | . . . Sneak Attacks . | . . . Combat Hostiles . | . . . Follow-up Attacks . | . . . Damage Inflicted 1386 | 110 1132 144 Guns 774 | 67 563 144 Cannons . | . . . Explosions 607 | 43 564 . Melee . | . . . Ramming 5 | . 5 . Kinetic 412 | 25 255 132 Thermal 83 | 43 40 . Explosive 524 | . 524 . Electromagnetic 362 | 42 308 12 Impact . | . . . Slashing . | . . . Piercing . | . . . Highest Corruption 2 | . 2 2 Average Corruption 2 | . 2 2 Corruption Purged . | . . . Corruption Blocked . | . . . Effects 9 | . 6 3 Matter Fused 4 | . 3 1 Heat Flow Errors 1 | . 1 . Energy Discharges 2 | . 1 1 Data Loss (minor) 2 | . 1 1 Overload Shots . | . . . Overflow Damage 5 | . 5 . Projectiles . | . . . Explosions 5 | . 5 . Melee . | . . . Knockbacks . | . . . Impact . | . . . Kinetic . | . . . Secondary . | . . . Self-Inflicted Damage 143 | 19 124 . Shots 5 | 1 4 . Rammed 2 | . 2 . Targets Rammed 2 | . 2 . Kicked . | . . . Crushed . | . . . Highest Temperature 209 | 12 193 209 Average Temperature 40 | 12 34 116 Received Heat Transfer 565 | . 225 340 Siege Activations . | . . . Martial Activations . | . . . Shielding Activations . | . . . Robots Disrupted . | . . . Combat Hostiles . | . . . Robots Corrupted . | . . . Combat Hostiles . | . . . Parts Fried . | . . . Impact Corruptions . | . . . Robots Melted . | . . . Combat Hostiles . | . . . Parts Melted 1 | 1 . . Heat Transferred 100 | 50 50 . Parts Sabotaged . | . . . Parts Stolen . | . . . Parts Stripped . | . . . Power Chain Reactions 2 | 1 1 . Alert | -11 -10 -10 ------- Run | Yrd Mat Sub Maximum Alert Level . | . . . Low Security (%) 100 | 100 100 . Level 1 . | . . . Level 2 . | . . . Level 3 . | . . . Level 4 . | . . . Level 5 . | . . . High Security . | . . . Max Security . | . . . Peak Influence 172 | 5 172 . Initial . | . . . Average 57 | . 62 . Influence Increases 421 | 10 411 . Destroy 0b10 Robot/C 220 | . 220 . Destroy 0b10 Robot/NC 30 | 10 20 . Destroy Leader 68 | . 68 . Successful Hack 3 | . 3 . Disable Machine 9 | . 9 . Destroy Structure 31 | . 31 . Lose Combat Pursuer 60 | . 60 . Influence Decreases 421 | 10 356 55 Entered New Map 31 | . . 31 Time Decay 370 | 10 336 24 Lost Part 20 | . 20 . Squads Dispatched 3 | . 3 . Investigation 3 | . 3 . Extermination . | . . . Reinforcement . | . . . Assault . | . . . Garrison . | . . . Intercept . | . . . Searches Triggered . | . . . Construction Impeded . | . . . Haulers Reinforced . | . . . Active Scanning Responses . | . . . Cargo Convoy Interrupts . | . . . Stealth | -11 -10 -10 --------- Run | Yrd Mat Sub Distress Signals . | . . . Communications Jammed . | . . . Distress Signals . | . . . Times Spotted 24 | . 17 7 Peak Tracking Total 5 | . 5 4 Tactical Retreats 1 | . 1 . Traps | -11 -10 -10 ------- Run | Yrd Mat Sub Traps Triggered 3 | . 2 1 Indirectly . | . . . Trap Hack Attempts . | . . . Triggered . | . . . Disarmed . | . . . Reprogrammed . | . . . Reused . | . . . Traps Extracted . | . . . Installed . | . . . Triggered . | . . . Machines | -11 -10 -10 ---------- Run | Yrd Mat Sub Machines Disabled 1 | . 1 . Max in Single Turn 1 | . 1 . Machines Repaired . | . . . Machines Dismantled . | . . . Machines Sabotaged . | . . . Overloaded Fab Kills . | . . . Hacking | -11 -10 -10 --------- Run | Yrd Mat Sub Machines Accessed 5 | . 5 . Terminals 4 | . 4 . Fabricators . | . . . Repair Stations 1 | . 1 . Recycling Units . | . . . Scanalyzers . | . . . Garrison Access . | . . . Total Hacks 10 | . 10 . Successful 6 | . 6 . Failed 4 | . 4 . Catastrophic . | . . . Database Lockouts . | . . . Manual . | . . . Terminals 7 | . 7 . Fabricators . | . . . Repair Stations 3 | . 3 . Recycling Units . | . . . Scanalyzers . | . . . Garrison Access . | . . . Terminal Hacks 4 | . 4 . Record 1 | . 1 . Robot Analysis 2 | . 2 . Emergency Access Points 1 | . 1 . Fabricator Hacks . | . . . Repair Station Hacks 2 | . 2 . Scan Component 1 | . 1 . Repair 1 | . 1 . Recycling Unit Hacks . | . . . Scanalyzer . | . . . Garrison Access Hacks . | . . . Unauthorized Hacks . | . . . Terminals . | . . . Fabricators . | . . . Repair Stations . | . . . Recycling Units . | . . . Scanalyzers . | . . . Garrison Access . | . . . Data Cores Recovered . | . . . Used . | . . . Hacking Detections 3 | . 3 . Full Trace Events 1 | . 1 . Feedback Events . | . . . Feedback Blocked . | . . . Robot Schematics Acquired . | . . . Robots Built . | . . . Authchips . | . . . Time . | . . . Total Robot Build Rating . | . . . Part Schematics Acquired . | . . . Parts Built . | . . . Authchips . | . . . Time . | . . . Total Part Build Rating . | . . . Parts Repaired 1 | . 1 . Time 53 | . 53 . Parts Recycled . | . . . Recycled Matter . | . . . Retrieved Matter . | . . . Retrieved Components . | . . . Parts Scanalyzed . | . . . Part Schematics Acquired . | . . . Parts Damaged . | . . . Bothacking | -11 -10 -10 ------------ Run | Yrd Mat Sub Used RIF Installer . | . . . Robots Hacked . | . . . Non-combat . | . . . Combat . | . . . Robot Hacks Applied . | . . . Relay Couplers Released . | . . . Fabnet Peak Effective % . | . . . Robots Rewired . | . . . Allies Hacked . | . . . Hacks Repelled . | . . . Allies | -11 -10 -10 -------- Run | Yrd Mat Sub Total Allies . | . . . Largest Group . | . . . Highest-Rated Group . | . . . Highest-Rated Ally . | . . . Total Orders . | . . . Ally Attacks . | . . . Total Damage . | . . . Kills . | . . . Allies Corrupted . | . . . Allies Melted . | . . . Intel | -11 -10 -10 ------- Run | Yrd Mat Sub Active Infowar (turns) 956 | . 844 112 Structural 956 | . 844 112 Robot Analysis Total 2 | . 2 . Derelict Logs Recovered . | . . . Drone Launches . | . . . Drone Recoveries . | . . . Exploration | -11 -10 -10 ------------- Run | Yrd Mat Sub Turns Passed 1102 | 69 865 168 Spaces Moved 805 | 40 659 106 Core 19 | 14 . 5 Treads . | . . . Legs . | . . . Wheels 786 | 26 659 101 Hover . | . . . Flight . | . . . Fastest Speed 50 | 50 90 105 Average Speed 107 | 81 104 136 Slowest Speed 750 | 100 120 750 Overloaded Moves . | . . . Propulsion Burnouts . | . . . Robots Hopped . | . . . Potential Cave-ins . | . . . Cave-ins Triggered . | . . . Exploration Rate (%) 34 | 4 92 8 Regions Visited 2 Branch Regions 1 Pre-discovered Areas . | . . . Known Exits Taken . | . . . Unknown Exits Taken 2 | 1 1 . Scrap Searched 2 | . . 2 Spaces Dug . | . . . Terrain Destroyed 57 | 5 52 . Melee . | . . . Projectile . | . . . AOE 57 | 5 52 . Terrain Rammed . | . . . Walls Destroyed . | . . . Machines Disabled . | . . . Actions | -11 -10 -10 --------- Run | Yrd Mat Sub Total 957 | 69 767 121 Wait 65 | 12 53 . Move 803 | 39 658 106 Hop . | . . . Pick Up 18 | 9 7 2 Fast Attach 1 | 1 . . Attach 12 | 5 4 3 Detach 1 | . . 1 Swap 6 | . 6 . Drop 1 | . 1 . Fire 48 | 3 36 9 Melee . | . . . Ram 2 | . 2 . Kick . | . . . Crush . | . . . Escape Stasis . | . . . Rewire . | . . . Trap . | . . . Miscellaneous . | . . . Route ------- -11/Scrapyard -10/Materials (discovered 5 exits: [*Mat x3] / [*Min] / [*Sub]) -10/Subcaves (discovered 1 exit: [*Mat]) History --------- Turn | Location | Event 6 | -11/Scrapyard | Discovered new exit (range 16) 70 | -11/Scrapyard | Entered Materials 214 | -10/Materials | Discovered new exit (range 15) 317 | -10/Materials | Build established: Mutant 428 | -10/Materials | Discovered new exit (range 12) 583 | -10/Materials | Discovered new exit (range 15) 664 | -10/Materials | Discovered new exit (range 15) 725 | -10/Materials | Repaired Corrupted Lgt. Nuclear Core 780 | -10/Materials | Discovered new exit (range 7) 830 | -10/Materials | Core integrity fell below 50% 935 | -10/Materials | Entered Subcaves 936 | -10/Subcaves | Approached by a straggling Scientist 964 | -10/Subcaves | Discovered new exit (range 9) 1040 | -10/Subcaves | Disturbed a concealed Subdweller 1086 | -10/Subcaves | Core integrity fell below 20% 1098 | -10/Subcaves | Lost 7 parts (2p2n3w) 1100 | -10/Subcaves | Ambushed by swarm of Subdwellers 1100 | -10/Subcaves | Ambushed by Subdwellers from Twisted Machinery 1103 | -10/Subcaves | Destroyed by Y9-WCS(R) with Subdweller Machine Gun Last Messages --------------- Z0-DSA(c): "I think it's somewhere west of here" 01094_ Subatomizers dissect the Spk. Treads. 01095_ Acquired 16 matter. A mess of Twisted Machinery falls from the cavern ceiling. R3-3QV(R) comes tumbling into view. 01100_ MB-UJP(h): "The Subs are coming!" 01100_ BI-IOH(R) angrily emerges from the Twisted Machinery. 01100_ Z0-DSA(c) destroyed. 01101_ Y5-EQV(g): "Sorry we're late! Had another grouchy Sub to deal with. Who's the new fellow?" 01101_ Barrage Gun destroyed. 01102_ Y9-WCS(R) emerges from the Twisted Machinery. 01103_ HV Slug penetrates QK-4XP(R). 01103_ QK-4XP(R) knocked back. 01103_ HV Slug penetrates QK-4XP(R). 01103_ HV Slug penetrates Earth. Map ----- +----------------------------------------------------+ | ?????????????????????????????????????????????????? | | ?????????????????????????????????????????????????? | | ?????????????????????????????????????????????????? | | ?????????????????????????????????????????????????? | | ?????????????????????????????????????????????????? | | ?????????????????????????????????????????????????? | | ?????????????????????????????????????????????????? | | ?????????????????????????????????????????????????? | | ?????????????????????????????????????????????????? | | ?????????????????????????????????????????????????? | | ?????????????????????????????????????????????????? | | ?????????????????????????????????????????????????? | | ?????????????????????????????????????????????????? | | ?????????????????????????????????????????????????? | | ?????????????????????????????????????????????????? | | ?????????????????????????????????????????????????? | | ?????????????????????????????????????????????????? | | ?????????????????????????????????????????????????? | | ?????????????????????????????????????????????????? | | ????????????????????##########???????????????????? | | ????????????????????########;##??????????????????? | | ????????????????????## <"""$;##??????????????????? | | ????????????????????##< $##?????"##??????????? | | ????????????????????# % <#??????###??????????? | | ??????????????##" ?? # %#!& #?????? ##??????????? | | ?????????????###### ###$]@&%##????? ##??????????? | | ?????????????### ####%R%%###???? ##??????????? | | ?????????????##" *%%"""R%%###?## ### ????????? | | ?????????????## ####"h%& [##### % ####???# "### | | ?????????????### "R" <#### % ### ? ###"### | | ??????????????##""## g R ### #### ###" # | | ??????????????##### g## ### ##### #""" "# | | ????## ????######## "###### #####"##" #""" | | ????## ##### " ### ## #####"""""##""# | | ????###?## #####???##"""##""# | | ????????## % ########## "# | | ??????#### ######## | | ?????### ## #####""#### | | ?????## ### ######" ### # | | ????### ### ###### ### < | | ????## ## ?## ### ##### ## ### | | ????# ## ?### ###### ### # | | ????? ?## ?############## ## | | ????? ??## #?#####??###### ### | | ?????? ???## ##???????????## ### | | ?????? ????## ##????## ## ## | | ????????????## ??????## ####### ## | | ????????????## ?????? ####### #### | | ???????????? ???????? #???## #### | | ?????????????????????? ## ???## ###?? | +----------------------------------------------------+ Best States ------------- Heat Dissipation 25 Energy Generation 14 Energy Capacity 250 Matter Stores 300 Matter Capacity 300 Sight Range 16 Terrain Scan Density 10 Resistance: KI 20 Resistance: TH 20 Resistance: EX 20 Resistance: EM 20 Resistance: I 20 Resistance: S 20 Resistance: P 20 Evasion (%) 50 Offensive Hacking 10 Item Schematics ----------------- None Robot Schematics ------------------ None Fabricated ------------ Nothing Repaired ---------- Lgt. Nuclear Core | 96% | -10/Materials | Corrupted Alien Tech Used ----------------- None Achievements -------------- None Challenges ------------ None Game ------ Seed AccelerationNeutrinoPower Manual? 0 Play Time 00:14:07 Cumulative 6.9 hours Start 2025.05.25 @ 22:11:01 End 2025.05.25 @ 22:22:51 Sessions 1 Manual Loads 0 Difficulty Adventurer Special Mode None Game No. 11 Rogue 0 Adventurer 9 Explorer 2 Win Type - Total 0 Types 0/0/0/0/0/0/0/0/0/0 Lore% 3 Gallery% 13 Achievement% 15 Wizard Run 0 Options --------- Layout 1 ASCII 0 Keyboard 0 Movement Mouse Keybinds 0 Fullscreen 1 Font 24/Smallcaps Map View 50x35 Zoom Use 0% Tactical HUD 1 Map Filters NONE Filters NONE Steam 1 RUN: c6c6b68c-74ce-4fc3-b7a8-ede43adfd36e